[Event "Titled Tuesday Blitz October 25 Late 2022"]
[White "Graif, William"]
[Black "Van Foreest, Jorden"]
[WhiteFideId "2609835"]
[BlackFideId "1039784"]
[WhiteElo "2205"]
[BlackElo "2649"]
[Result "1-0"]
[Round "01"]
[TimeControl "180+1"]
[Date "2022.10.26"]
[WhiteClock "0:00:06"]
[BlackClock "0:01:53"]

1. d4 {[%clk 0:02:56]}  Nf6 {[%clk 0:02:59]} 2. Nc3 {[%clk 0:02:55]}  e6 {[%clk 0:03:00]} 3. e4 {[%clk 0:02:53]}  d5 {[%clk 0:03:00]} 4. Bg5 {[%clk 0:02:49]}  h6 {[%clk 0:02:52]} 5. Bxf6 {[%clk 0:02:43]}  Qxf6 {[%clk 0:02:53]} 6. exd5 {[%clk 0:02:43]}  Bb4 {[%clk 0:02:54]} 7. Bb5+ {[%clk 0:02:30]}  Bd7 {[%clk 0:02:52]} 8. Bxd7+ {[%clk 0:02:26]}  Nxd7 {[%clk 0:02:53]} 9. dxe6 {[%clk 0:02:22]}  Qxe6+ {[%clk 0:02:54]} 10. Qe2 {[%clk 0:02:12]}  Bxc3+ {[%clk 0:02:54]} 11. bxc3 {[%clk 0:02:12]}  Qxe2+ {[%clk 0:02:55]} 12. Nxe2 {[%clk 0:02:12]}  O-O-O {[%clk 0:02:55]} 13. O-O {[%clk 0:01:35]}  Nb6 {[%clk 0:02:55]} 14. Rfe1 {[%clk 0:01:30]}  Rd6 {[%clk 0:02:50]} 15. Rad1 {[%clk 0:01:04]}  Re8 {[%clk 0:02:46]} 16. Kf1 {[%clk 0:00:43]}  Rc6 {[%clk 0:02:38]} 17. Rd3 {[%clk 0:00:42]}  Nd5 {[%clk 0:02:37]} 18. a3 {[%clk 0:00:23]}  b5 {[%clk 0:02:37]} 19. Ng3 {[%clk 0:00:17]}  Rxe1+ {[%clk 0:02:37]} 20. Kxe1 {[%clk 0:00:18]}  Nxc3 {[%clk 0:02:37]} 21. Kd2 {[%clk 0:00:19]}  Nd5 {[%clk 0:02:31]} 22. Nf5 {[%clk 0:00:19]}  Rf6 {[%clk 0:02:30]} 23. Rf3 {[%clk 0:00:18]}  Rg6 {[%clk 0:02:24]} 24. Rg3 {[%clk 0:00:16]}  Rf6 {[%clk 0:02:21]} 25. Rf3 {[%clk 0:00:13]}  g5 {[%clk 0:01:58]} 26. Ne7+ {[%clk 0:00:12]}  Kb7 {[%clk 0:01:51]} 27. Nxd5 {[%clk 0:00:12]}  Rd6 {[%clk 0:01:52]} 28. Rf5 {[%clk 0:00:11]}  c6 {[%clk 0:01:52]} 29. Rxf7+ {[%clk 0:00:09]}  Ka6 {[%clk 0:01:52]} 30. Nb4+ {[%clk 0:00:08]}  Kb6 {[%clk 0:01:53]} 31. c3 {[%clk 0:00:09]}  a5 {[%clk 0:01:52]} 32. Nd3 {[%clk 0:00:09]}  a4 {[%clk 0:01:50]} 33. Nc5 {[%clk 0:00:09]}  Rg6 {[%clk 0:01:50]} 34. Rb7+ {[%clk 0:00:08]}  Ka5 {[%clk 0:01:51]} 35. f3 {[%clk 0:00:06]}  Rf6 {[%clk 0:01:51]} 36. Kd3 {[%clk 0:00:06]}  h5 {[%clk 0:01:51]} 37. Rg7 {[%clk 0:00:05]}  g4 {[%clk 0:01:51]} 38. fxg4 {[%clk 0:00:05]}  hxg4 {[%clk 0:01:51]} 39. Rxg4 {[%clk 0:00:05]}  Rf2 {[%clk 0:01:52]} 40. h4 {[%clk 0:00:05]}  Ra2 {[%clk 0:01:51]} 41. h5 {[%clk 0:00:05]}  Rxa3 {[%clk 0:01:52]} 42. h6 {[%clk 0:00:06]}  b4 {[%clk 0:01:53]} 43. h7 {[%clk 0:00:06]}  Rxc3+ {[%clk 0:01:53]} 44. Ke4 {[%clk 0:00:06]} 1-0


[Site "https://www.chess.com"]

[Event "Titled Tuesday Blitz October 25 Late 2022"]
[White "Grot, Blazej"]
[Black "Bjelobrk, Igor"]
[WhiteFideId "21835845"]
[BlackFideId "4300726"]
[WhiteElo "1739"]
[BlackElo "2335"]
[Result "1/2-1/2"]
[Round "01"]
[TimeControl "180+1"]
[Date "2022.10.26"]
[WhiteClock "0:00:09"]
[BlackClock "0:00:13"]

1. e4 {[%clk 0:03:00]}  c5 {[%clk 0:02:58]} 2. Nc3 {[%clk 0:02:58]}  e6 {[%clk 0:02:58]} 3. g3 {[%clk 0:02:57]}  d5 {[%clk 0:02:44]} 4. exd5 {[%clk 0:02:55]}  exd5 {[%clk 0:02:42]} 5. d4 {[%clk 0:02:55]}  cxd4 {[%clk 0:02:27]} 6. Qxd4 {[%clk 0:02:56]}  Nc6 {[%clk 0:02:22]} 7. Qxd5 {[%clk 0:02:48]}  Be6 {[%clk 0:02:20]} 8. Qxd8+ {[%clk 0:02:46]}  Rxd8 {[%clk 0:02:21]} 9. Bb5 {[%clk 0:02:41]}  Bb4 {[%clk 0:02:07]} 10. Ne2 {[%clk 0:02:39]}  Ne7 {[%clk 0:02:07]} 11. a3 {[%clk 0:02:31]}  Ba5 {[%clk 0:02:06]} 12. Bg5 {[%clk 0:02:26]}  f6 {[%clk 0:02:03]} 13. Be3 {[%clk 0:02:23]}  O-O {[%clk 0:02:00]} 14. Bc5 {[%clk 0:02:15]}  Rf7 {[%clk 0:02:00]} 15. b4 {[%clk 0:01:59]}  Bc7 {[%clk 0:01:58]} 16. Rd1 {[%clk 0:01:54]}  Rxd1+ {[%clk 0:01:55]} 17. Kxd1 {[%clk 0:01:53]}  a6 {[%clk 0:01:54]} 18. Bd3 {[%clk 0:01:39]}  Ne5 {[%clk 0:01:46]} 19. Nf4 {[%clk 0:01:30]}  Bg4+ {[%clk 0:01:28]} 20. Be2 {[%clk 0:01:29]}  N7c6 {[%clk 0:01:28]} 21. Bxg4 {[%clk 0:01:22]}  Nxg4 {[%clk 0:01:27]} 22. h3 {[%clk 0:01:23]}  Nge5 {[%clk 0:01:24]} 23. Nfd5 {[%clk 0:01:15]}  Bd8 {[%clk 0:01:22]} 24. a4 {[%clk 0:01:04]}  Nc4 {[%clk 0:01:05]} 25. Kc1 {[%clk 0:01:00]}  b6 {[%clk 0:00:57]} 26. Be3 {[%clk 0:00:51]}  Nxe3 {[%clk 0:00:52]} 27. fxe3 {[%clk 0:00:49]}  Rb7 {[%clk 0:00:36]} 28. Rd1 {[%clk 0:00:47]}  Kf7 {[%clk 0:00:36]} 29. Ne4 {[%clk 0:00:45]}  Be7 {[%clk 0:00:34]} 30. Nxe7 {[%clk 0:00:39]}  Kxe7 {[%clk 0:00:33]} 31. Nd6 {[%clk 0:00:36]}  Rc7 {[%clk 0:00:29]} 32. Nf5+ {[%clk 0:00:35]}  Kf7 {[%clk 0:00:29]} 33. Nd6+ {[%clk 0:00:26]}  Ke6 {[%clk 0:00:29]} 34. b5 {[%clk 0:00:27]}  Nb4 {[%clk 0:00:26]} 35. c4 {[%clk 0:00:19]}  axb5 {[%clk 0:00:21]} 36. axb5 {[%clk 0:00:19]}  Rc5 {[%clk 0:00:14]} 37. Rd2 {[%clk 0:00:16]}  Re5 {[%clk 0:00:08]} 38. e4 {[%clk 0:00:12]}  Rg5 {[%clk 0:00:07]} 39. Nf5 {[%clk 0:00:11]}  g6 {[%clk 0:00:07]} 40. Nd4+ {[%clk 0:00:12]}  Ke5 {[%clk 0:00:07]} 41. Nf3+ {[%clk 0:00:09]}  Kxe4 {[%clk 0:00:07]} 42. Nxg5+ {[%clk 0:00:10]}  fxg5 {[%clk 0:00:08]} 43. Rd6 {[%clk 0:00:10]}  Nd3+ {[%clk 0:00:07]} 44. Kd2 {[%clk 0:00:09]}  Ne5 {[%clk 0:00:07]} 45. Kc3 {[%clk 0:00:07]}  g4 {[%clk 0:00:07]} 46. Rxb6 {[%clk 0:00:07]}  gxh3 {[%clk 0:00:07]} 47. Rb7 {[%clk 0:00:07]}  h5 {[%clk 0:00:07]} 48. Ra7 {[%clk 0:00:06]}  h2 {[%clk 0:00:07]} 49. Ra1 {[%clk 0:00:07]}  Nf3 {[%clk 0:00:07]} 50. Rh1 {[%clk 0:00:05]}  g5 {[%clk 0:00:07]} 51. b6 {[%clk 0:00:05]}  h4 {[%clk 0:00:08]} 52. gxh4 {[%clk 0:00:05]}  g4 {[%clk 0:00:08]} 53. b7 {[%clk 0:00:05]}  g3 {[%clk 0:00:08]} 54. b8=Q {[%clk 0:00:06]}  Ke3 {[%clk 0:00:09]} 55. Qe8+ {[%clk 0:00:05]}  Kf2 {[%clk 0:00:09]} 56. Qa4 {[%clk 0:00:03]}  g2 {[%clk 0:00:09]} 57. Qc2+ {[%clk 0:00:03]}  Kg3 {[%clk 0:00:09]} 58. Rxh2 {[%clk 0:00:02]}  Nxh2 {[%clk 0:00:10]} 59. Qc1 {[%clk 0:00:02]}  Nf3 {[%clk 0:00:10]} 60. Qd1 {[%clk 0:00:01]}  Nxh4 {[%clk 0:00:11]} 61. c5 {[%clk 0:00:01]}  Nf3 {[%clk 0:00:10]} 62. c6 {[%clk 0:00:02]}  Ng5 {[%clk 0:00:09]} 63. c7 {[%clk 0:00:01]}  Ne4+ {[%clk 0:00:10]} 64. Kc4 {[%clk 0:00:01]}  Nd6+ {[%clk 0:00:11]} 65. Kc5 {[%clk 0:00:01]}  Nc8 {[%clk 0:00:11]} 66. Kc6 {[%clk 0:00:02]}  Kf2 {[%clk 0:00:12]} 67. Qd3 {[%clk 0:00:03]}  g1=Q {[%clk 0:00:11]} 68. Qd4+ {[%clk 0:00:04]}  Kg2 {[%clk 0:00:11]} 69. Qxg1+ {[%clk 0:00:05]}  Kxg1 {[%clk 0:00:12]} 70. Kd7 {[%clk 0:00:06]}  Na7 {[%clk 0:00:12]} 71. Kd6 {[%clk 0:00:05]}  Kf2 {[%clk 0:00:12]} 72. Kc5 {[%clk 0:00:06]}  Ke3 {[%clk 0:00:12]} 73. Kb6 {[%clk 0:00:07]}  Nc8+ {[%clk 0:00:13]} 74. Kb7 {[%clk 0:00:07]}  Nd6+ {[%clk 0:00:13]} 75. Kc6 {[%clk 0:00:06]}  Nc8 {[%clk 0:00:13]} 76. Kd5 {[%clk 0:00:07]}  Kf4 {[%clk 0:00:13]} 77. Ke6 {[%clk 0:00:05]}  Ke4 {[%clk 0:00:13]} 78. Kd7 {[%clk 0:00:06]}  Nb6+ {[%clk 0:00:13]} 79. Kd8 {[%clk 0:00:07]}  Kd5 {[%clk 0:00:12]} 80. Ke7 {[%clk 0:00:08]}  Kc6 {[%clk 0:00:12]} 81. Kd8 {[%clk 0:00:08]}  Kb7 {[%clk 0:00:12]} 82. c8=Q+ {[%clk 0:00:09]}  Nxc8 {[%clk 0:00:13]} 1/2-1/2


[Site "https://www.chess.com"]

[Event "Titled Tuesday Blitz October 25 Late 2022"]
[White "Hansen, Eric"]
[Black "Ashiku, Franc"]
[WhiteFideId "2606771"]
[BlackFideId "4700066"]
[WhiteElo "2568"]
[BlackElo "2306"]
[Result "1-0"]
[Round "01"]
[TimeControl "180+1"]
[Date "2022.10.26"]
[WhiteClock "0:00:36"]
[BlackClock "0:00:05"]

1. d4 {[%clk 0:02:57]}  Nf6 {[%clk 0:02:59]} 2. c4 {[%clk 0:02:55]}  e6 {[%clk 0:02:59]} 3. Nf3 {[%clk 0:02:54]}  b6 {[%clk 0:02:57]} 4. g3 {[%clk 0:02:52]}  Bb7 {[%clk 0:02:56]} 5. Bg2 {[%clk 0:02:53]}  c6 {[%clk 0:02:47]} 6. Ne5 {[%clk 0:02:50]}  d5 {[%clk 0:02:44]} 7. Qa4 {[%clk 0:02:45]}  a6 {[%clk 0:02:09]} 8. cxd5 {[%clk 0:02:45]}  b5 {[%clk 0:02:09]} 9. Qb3 {[%clk 0:02:43]}  cxd5 {[%clk 0:02:08]} 10. a4 {[%clk 0:02:43]}  b4 {[%clk 0:02:05]} 11. Bd2 {[%clk 0:02:29]}  a5 {[%clk 0:02:01]} 12. Na3 {[%clk 0:02:29]}  Ne4 {[%clk 0:01:15]} 13. Be3 {[%clk 0:02:19]}  Nd6 {[%clk 0:01:08]} 14. Nb5 {[%clk 0:02:07]}  Nxb5 {[%clk 0:00:48]} 15. axb5 {[%clk 0:02:07]}  Qb6 {[%clk 0:00:47]} 16. Qd3 {[%clk 0:02:07]}  Be7 {[%clk 0:00:29]} 17. O-O {[%clk 0:02:05]}  a4 {[%clk 0:00:25]} 18. Rfc1 {[%clk 0:02:04]}  O-O {[%clk 0:00:25]} 19. Bf4 {[%clk 0:01:28]}  Rc8 {[%clk 0:00:20]} 20. Rxc8+ {[%clk 0:01:17]}  Bxc8 {[%clk 0:00:21]} 21. e4 {[%clk 0:01:10]}  Bb7 {[%clk 0:00:20]} 22. exd5 {[%clk 0:01:10]}  Bxd5 {[%clk 0:00:20]} 23. Rc1 {[%clk 0:01:05]}  Qb7 {[%clk 0:00:17]} 24. Bxd5 {[%clk 0:00:59]}  exd5 {[%clk 0:00:18]} 25. Nxf7 {[%clk 0:00:54]}  Kxf7 {[%clk 0:00:17]} 26. Qf5+ {[%clk 0:00:54]}  Ke8 {[%clk 0:00:14]} 27. Rc8+ {[%clk 0:00:41]}  Qxc8 {[%clk 0:00:11]} 28. Qxc8+ {[%clk 0:00:41]}  Kf7 {[%clk 0:00:12]} 29. Qb7 {[%clk 0:00:35]}  Ra5 {[%clk 0:00:07]} 30. Bd6 {[%clk 0:00:36]}  a3 {[%clk 0:00:05]} 31. Qxe7+ {[%clk 0:00:36]} 1-0


[Site "https://www.chess.com"]

[Event "Titled Tuesday Blitz October 25 Late 2022"]
[White "Iliaguev, Nisim"]
[Black "Ljukin, Sergei"]
[WhiteFideId "2817276"]
[BlackFideId "14102200"]
[WhiteElo "2264"]
[BlackElo "2312"]
[Result "1-0"]
[Round "01"]
[TimeControl "180+1"]
[Date "2022.10.26"]
[WhiteClock "0:01:32"]
[BlackClock "0:01:25"]

1. d4 {[%clk 0:03:00]}  d5 {[%clk 0:02:59]} 2. Nf3 {[%clk 0:03:01]}  Nf6 {[%clk 0:02:59]} 3. g3 {[%clk 0:03:01]}  Bg4 {[%clk 0:02:58]} 4. Bg2 {[%clk 0:03:01]}  e6 {[%clk 0:02:58]} 5. O-O {[%clk 0:03:02]}  Nbd7 {[%clk 0:02:57]} 6. c4 {[%clk 0:03:02]}  c6 {[%clk 0:02:57]} 7. Nc3 {[%clk 0:02:59]}  Bd6 {[%clk 0:02:57]} 8. Qc2 {[%clk 0:02:59]}  Bf5 {[%clk 0:02:55]} 9. Qb3 {[%clk 0:02:59]}  Qb6 {[%clk 0:02:55]} 10. c5 {[%clk 0:02:58]}  Qxb3 {[%clk 0:02:54]} 11. axb3 {[%clk 0:02:59]}  Bc7 {[%clk 0:02:54]} 12. b4 {[%clk 0:02:59]}  e5 {[%clk 0:02:51]} 13. dxe5 {[%clk 0:02:56]}  Nxe5 {[%clk 0:02:50]} 14. Nd4 {[%clk 0:02:57]}  Bd7 {[%clk 0:02:43]} 15. b5 {[%clk 0:02:57]}  O-O {[%clk 0:02:42]} 16. bxc6 {[%clk 0:02:55]}  bxc6 {[%clk 0:02:42]} 17. Ra6 {[%clk 0:02:50]}  Bc8 {[%clk 0:02:41]} 18. Ra1 {[%clk 0:02:47]}  Bd7 {[%clk 0:02:41]} 19. Bf4 {[%clk 0:02:46]}  a5 {[%clk 0:02:29]} 20. e4 {[%clk 0:02:39]}  Nh5 {[%clk 0:02:09]} 21. exd5 {[%clk 0:02:29]}  Nxf4 {[%clk 0:01:58]} 22. gxf4 {[%clk 0:02:30]}  Nd3 {[%clk 0:01:58]} 23. d6 {[%clk 0:02:28]}  Bd8 {[%clk 0:01:57]} 24. Bxc6 {[%clk 0:02:18]}  Bxc6 {[%clk 0:01:52]} 25. Nxc6 {[%clk 0:02:19]}  Nxc5 {[%clk 0:01:51]} 26. Nd5 {[%clk 0:02:11]}  Nd3 {[%clk 0:01:47]} 27. b4 {[%clk 0:01:50]}  a4 {[%clk 0:01:27]} 28. Ra3 {[%clk 0:01:33]}  Nb2 {[%clk 0:01:25]} 29. Rc1 {[%clk 0:01:32]} 1-0


[Site "https://www.chess.com"]

[Event "Titled Tuesday Blitz October 25 Late 2022"]
[White "Jensen, Matthew R"]
[Black "Adla, Diego"]
[WhiteFideId "2018110"]
[BlackFideId "100072"]
[WhiteElo "2299"]
[BlackElo "2377"]
[Result "0-1"]
[Round "01"]
[TimeControl "180+1"]
[Date "2022.10.26"]
[WhiteClock "0:00:17"]
[BlackClock "0:01:11"]

1. d4 {[%clk 0:02:53]}  Nf6 {[%clk 0:02:59]} 2. c4 {[%clk 0:02:53]}  e6 {[%clk 0:02:59]} 3. g3 {[%clk 0:02:51]}  c5 {[%clk 0:02:58]} 4. d5 {[%clk 0:02:49]}  exd5 {[%clk 0:02:57]} 5. cxd5 {[%clk 0:02:49]}  d6 {[%clk 0:02:54]} 6. Bg2 {[%clk 0:02:48]}  g6 {[%clk 0:02:52]} 7. e4 {[%clk 0:02:45]}  Bg7 {[%clk 0:02:52]} 8. Ne2 {[%clk 0:02:45]}  O-O {[%clk 0:02:51]} 9. O-O {[%clk 0:02:46]}  b6 {[%clk 0:02:51]} 10. Nbc3 {[%clk 0:02:45]}  Ba6 {[%clk 0:02:51]} 11. Qc2 {[%clk 0:02:33]}  Re8 {[%clk 0:02:40]} 12. h3 {[%clk 0:02:11]}  Nbd7 {[%clk 0:02:39]} 13. Be3 {[%clk 0:02:00]}  b5 {[%clk 0:02:39]} 14. f3 {[%clk 0:01:33]}  b4 {[%clk 0:02:38]} 15. Na4 {[%clk 0:01:31]}  Qa5 {[%clk 0:02:32]} 16. b3 {[%clk 0:01:30]}  Nxd5 {[%clk 0:02:26]} 17. exd5 {[%clk 0:01:27]}  Rxe3 {[%clk 0:02:25]} 18. Rae1 {[%clk 0:01:23]}  Rae8 {[%clk 0:02:21]} 19. Rf2 {[%clk 0:01:15]}  Bd4 {[%clk 0:02:14]} 20. Kh2 {[%clk 0:00:55]}  Bd3 {[%clk 0:02:07]} 21. Qd2 {[%clk 0:00:51]}  Qa6 {[%clk 0:01:51]} 22. Bf1 {[%clk 0:00:44]}  R3e7 {[%clk 0:01:34]} 23. Rg2 {[%clk 0:00:43]}  Be3 {[%clk 0:01:31]} 24. Qb2 {[%clk 0:00:42]}  Ne5 {[%clk 0:01:24]} 25. Kh1 {[%clk 0:00:21]}  Nxf3 {[%clk 0:01:23]} 26. Rd1 {[%clk 0:00:22]}  Bb5 {[%clk 0:01:21]} 27. Nf4 {[%clk 0:00:22]}  Bxf1 {[%clk 0:01:17]} 28. Nh5 {[%clk 0:00:19]}  Bxg2+ {[%clk 0:01:13]} 29. Kxg2 {[%clk 0:00:18]}  Bd4 {[%clk 0:01:12]} 30. Qc1 {[%clk 0:00:17]}  Qe2+ {[%clk 0:01:11]} 31. Kh1 {[%clk 0:00:17]}  Qh2# {[%clk 0:01:11]} 0-1


[Site "https://www.chess.com"]

[Event "Titled Tuesday Blitz October 25 Late 2022"]
[White "Jimenez Almeida, Luis David"]
[Black "Burke, Paul"]
[WhiteFideId "22242244"]
[BlackFideId "2605767"]
[WhiteElo "2158"]
[BlackElo "1832"]
[Result "1-0"]
[Round "01"]
[TimeControl "180+1"]
[Date "2022.10.26"]
[WhiteClock "0:00:56"]
[BlackClock "0:00:07"]

1. Nf3 {[%clk 0:02:48]}  a6 {[%clk 0:02:58]} 2. e4 {[%clk 0:02:47]}  d6 {[%clk 0:02:58]} 3. Nc3 {[%clk 0:02:46]}  g6 {[%clk 0:02:59]} 4. d4 {[%clk 0:02:46]}  Bg7 {[%clk 0:02:58]} 5. a4 {[%clk 0:02:46]}  Nd7 {[%clk 0:02:57]} 6. h4 {[%clk 0:02:45]}  h6 {[%clk 0:02:56]} 7. Be3 {[%clk 0:02:45]}  e6 {[%clk 0:02:56]} 8. Bc4 {[%clk 0:02:42]}  Ne7 {[%clk 0:02:54]} 9. Bb3 {[%clk 0:02:42]}  b6 {[%clk 0:02:51]} 10. Qe2 {[%clk 0:02:42]}  Bb7 {[%clk 0:02:50]} 11. Rd1 {[%clk 0:02:41]}  O-O {[%clk 0:02:46]} 12. O-O {[%clk 0:02:40]}  Kh7 {[%clk 0:02:38]} 13. Rfe1 {[%clk 0:02:33]}  Nf6 {[%clk 0:02:34]} 14. e5 {[%clk 0:02:25]}  Ng4 {[%clk 0:02:30]} 15. Bf4 {[%clk 0:02:22]}  d5 {[%clk 0:02:22]} 16. Nb1 {[%clk 0:02:16]}  Nf5 {[%clk 0:02:16]} 17. g3 {[%clk 0:02:13]}  c5 {[%clk 0:02:03]} 18. c3 {[%clk 0:02:10]}  Qe7 {[%clk 0:01:53]} 19. Nbd2 {[%clk 0:02:08]}  Rae8 {[%clk 0:01:39]} 20. Nf1 {[%clk 0:02:07]}  f6 {[%clk 0:01:17]} 21. Bc2 {[%clk 0:01:58]}  fxe5 {[%clk 0:01:13]} 22. Nxe5 {[%clk 0:01:57]}  Nxe5 {[%clk 0:01:11]} 23. Bxe5 {[%clk 0:01:58]}  Bxe5 {[%clk 0:00:59]} 24. dxe5 {[%clk 0:01:59]}  Nxh4 {[%clk 0:00:40]} 25. gxh4 {[%clk 0:01:57]}  Qxh4 {[%clk 0:00:40]} 26. Ng3 {[%clk 0:01:57]}  Rf4 {[%clk 0:00:37]} 27. Rd2 {[%clk 0:01:21]}  Ref8 {[%clk 0:00:36]} 28. Qd3 {[%clk 0:01:11]}  Rg4 {[%clk 0:00:35]} 29. Re3 {[%clk 0:01:01]}  c4 {[%clk 0:00:26]} 30. Qe2 {[%clk 0:00:58]}  Qg5 {[%clk 0:00:18]} 31. Rd4 {[%clk 0:00:55]}  h5 {[%clk 0:00:14]} 32. Rxg4 {[%clk 0:00:54]}  Qxg4 {[%clk 0:00:14]} 33. Qxg4 {[%clk 0:00:54]}  hxg4 {[%clk 0:00:13]} 34. Ne2 {[%clk 0:00:54]}  Kg7 {[%clk 0:00:12]} 35. Nd4 {[%clk 0:00:55]}  Bc8 {[%clk 0:00:11]} 36. Rg3 {[%clk 0:00:55]}  Rf4 {[%clk 0:00:09]} 37. f3 {[%clk 0:00:54]}  gxf3 {[%clk 0:00:08]} 38. Rxg6+ {[%clk 0:00:55]}  Kf7 {[%clk 0:00:07]} 39. Kf2 {[%clk 0:00:56]} 1-0


[Site "https://www.chess.com"]

[Event "Titled Tuesday Blitz October 25 Late 2022"]
[White "Jimenez Fernandez, Rebeca"]
[Black "Zakaryan, David"]
[WhiteFideId "32070934"]
[BlackFideId "24101923"]
[WhiteElo "1946"]
[BlackElo "2409"]
[Result "1-0"]
[Round "01"]
[TimeControl "180+1"]
[Date "2022.10.26"]
[WhiteClock "0:00:42"]
[BlackClock "0:00:17"]

1. e4 {[%clk 0:02:59]}  c5 {[%clk 0:02:59]} 2. Nc3 {[%clk 0:02:59]}  Nc6 {[%clk 0:03:00]} 3. g3 {[%clk 0:02:59]}  g6 {[%clk 0:03:00]} 4. Bg2 {[%clk 0:02:59]}  Bg7 {[%clk 0:03:00]} 5. d3 {[%clk 0:03:00]}  d6 {[%clk 0:03:00]} 6. Be3 {[%clk 0:03:00]}  Rb8 {[%clk 0:02:58]} 7. Qd2 {[%clk 0:02:59]}  b5 {[%clk 0:02:58]} 8. Nge2 {[%clk 0:02:58]}  b4 {[%clk 0:02:48]} 9. Nd1 {[%clk 0:02:57]}  a5 {[%clk 0:02:48]} 10. O-O {[%clk 0:02:53]}  a4 {[%clk 0:02:46]} 11. d4 {[%clk 0:02:50]}  cxd4 {[%clk 0:02:43]} 12. Nxd4 {[%clk 0:02:51]}  Ne5 {[%clk 0:02:39]} 13. b3 {[%clk 0:02:36]}  Ba6 {[%clk 0:02:33]} 14. Re1 {[%clk 0:02:32]}  Qd7 {[%clk 0:02:33]} 15. c4 {[%clk 0:02:29]}  bxc3 {[%clk 0:02:30]} 16. Nxc3 {[%clk 0:02:29]}  axb3 {[%clk 0:02:23]} 17. axb3 {[%clk 0:02:27]}  Bb7 {[%clk 0:02:23]} 18. Ra7 {[%clk 0:02:15]}  Nc6 {[%clk 0:02:17]} 19. Nxc6 {[%clk 0:02:11]}  Qxc6 {[%clk 0:02:17]} 20. Nd5 {[%clk 0:01:58]}  Nf6 {[%clk 0:02:09]} 21. Rc1 {[%clk 0:01:56]}  Nxd5 {[%clk 0:01:37]} 22. Rxc6 {[%clk 0:01:53]}  Bxc6 {[%clk 0:01:33]} 23. exd5 {[%clk 0:01:53]}  Bb5 {[%clk 0:01:32]} 24. Bg5 {[%clk 0:01:46]}  O-O {[%clk 0:01:28]} 25. Bxe7 {[%clk 0:01:43]}  Ra8 {[%clk 0:01:28]} 26. Qa2 {[%clk 0:01:20]}  Rxa7 {[%clk 0:01:26]} 27. Qxa7 {[%clk 0:01:21]}  Re8 {[%clk 0:01:27]} 28. h4 {[%clk 0:01:16]}  Be5 {[%clk 0:01:26]} 29. Qc7 {[%clk 0:01:10]}  Ra8 {[%clk 0:01:22]} 30. Bxd6 {[%clk 0:01:07]}  Bd4 {[%clk 0:01:23]} 31. Be5 {[%clk 0:01:00]}  Bxe5 {[%clk 0:00:15]} 32. Qxe5 {[%clk 0:01:00]}  Re8 {[%clk 0:00:15]} 33. Qd4 {[%clk 0:00:56]}  Re1+ {[%clk 0:00:15]} 34. Kh2 {[%clk 0:00:56]}  Re8 {[%clk 0:00:15]} 35. d6 {[%clk 0:00:55]}  Bd7 {[%clk 0:00:16]} 36. b4 {[%clk 0:00:52]}  Rb8 {[%clk 0:00:15]} 37. Qc5 {[%clk 0:00:51]}  Rb5 {[%clk 0:00:14]} 38. Qc7 {[%clk 0:00:49]}  Be6 {[%clk 0:00:14]} 39. d7 {[%clk 0:00:46]}  Bxd7 {[%clk 0:00:14]} 40. Qxd7 {[%clk 0:00:47]}  Rxb4 {[%clk 0:00:15]} 41. Qc8+ {[%clk 0:00:46]}  Kg7 {[%clk 0:00:14]} 42. Qc3+ {[%clk 0:00:46]}  Kh6 {[%clk 0:00:15]} 43. Qxb4 {[%clk 0:00:46]}  Kh5 {[%clk 0:00:16]} 44. Qc5+ {[%clk 0:00:45]}  f5 {[%clk 0:00:16]} 45. Bf3+ {[%clk 0:00:42]}  Kh6 {[%clk 0:00:17]} 46. Qf8# {[%clk 0:00:42]} 1-0


[Site "https://www.chess.com"]

[Event "Titled Tuesday Blitz October 25 Late 2022"]
[White "Kalaiyalahan, Akshaya"]
[Black "Ozsakallioglu, Okan"]
[WhiteFideId "422894"]
[BlackFideId "6367011"]
[WhiteElo "2043"]
[BlackElo "2078"]
[Result "0-1"]
[Round "01"]
[TimeControl "180+1"]
[Date "2022.10.26"]
[WhiteClock "0:00:02"]
[BlackClock "0:00:38"]

1. c4 {[%clk 0:02:42]}  Nf6 {[%clk 0:02:58]} 2. Nc3 {[%clk 0:02:40]}  g6 {[%clk 0:02:57]} 3. Nf3 {[%clk 0:02:39]}  Bg7 {[%clk 0:02:58]} 4. e3 {[%clk 0:02:39]}  O-O {[%clk 0:02:59]} 5. d4 {[%clk 0:02:39]}  d6 {[%clk 0:02:59]} 6. b3 {[%clk 0:02:38]}  Nbd7 {[%clk 0:03:00]} 7. Bb2 {[%clk 0:02:39]}  e5 {[%clk 0:03:01]} 8. Be2 {[%clk 0:02:37]}  Re8 {[%clk 0:02:59]} 9. O-O {[%clk 0:02:37]}  e4 {[%clk 0:02:58]} 10. Nd2 {[%clk 0:02:36]}  Nf8 {[%clk 0:02:59]} 11. Qc2 {[%clk 0:02:31]}  Bf5 {[%clk 0:02:58]} 12. h3 {[%clk 0:02:26]}  h5 {[%clk 0:02:56]} 13. Nd5 {[%clk 0:01:55]}  N8h7 {[%clk 0:02:51]} 14. Nxf6+ {[%clk 0:01:42]}  Qxf6 {[%clk 0:02:49]} 15. Rab1 {[%clk 0:01:21]}  Qg5 {[%clk 0:02:48]} 16. Kh1 {[%clk 0:01:19]}  Qh4 {[%clk 0:02:47]} 17. d5 {[%clk 0:01:06]}  Bxh3 {[%clk 0:02:27]} 18. gxh3 {[%clk 0:01:04]}  Qxh3+ {[%clk 0:02:28]} 19. Kg1 {[%clk 0:01:04]}  Ng5 {[%clk 0:02:27]} 20. Bxg7 {[%clk 0:01:01]}  Kxg7 {[%clk 0:02:24]} 21. f4 {[%clk 0:00:56]}  Qxe3+ {[%clk 0:02:13]} 22. Kh1 {[%clk 0:00:51]}  Nh3 {[%clk 0:02:06]} 23. Rbe1 {[%clk 0:00:42]}  Qg3 {[%clk 0:01:26]} 24. Nxe4 {[%clk 0:00:35]}  Qh4 {[%clk 0:01:20]} 25. Qc3+ {[%clk 0:00:30]}  f6 {[%clk 0:01:20]} 26. Qg3 {[%clk 0:00:16]}  Qxg3 {[%clk 0:00:37]} 27. Nxg3 {[%clk 0:00:15]}  Re3 {[%clk 0:00:37]} 28. Kg2 {[%clk 0:00:15]}  h4 {[%clk 0:00:36]} 29. Kxh3 {[%clk 0:00:12]}  hxg3 {[%clk 0:00:36]} 30. Kg2 {[%clk 0:00:12]}  Rae8 {[%clk 0:00:35]} 31. Rf3 {[%clk 0:00:05]}  Rxe2+ {[%clk 0:00:35]} 32. Rxe2 {[%clk 0:00:06]}  Rxe2+ {[%clk 0:00:36]} 33. Kxg3 {[%clk 0:00:06]}  Rxa2 {[%clk 0:00:36]} 34. Re3 {[%clk 0:00:07]}  Kf7 {[%clk 0:00:37]} 35. Rc3 {[%clk 0:00:05]}  Ra3 {[%clk 0:00:36]} 36. Kf3 {[%clk 0:00:04]}  b6 {[%clk 0:00:37]} 37. Ke3 {[%clk 0:00:04]}  a5 {[%clk 0:00:37]} 38. Kd4 {[%clk 0:00:03]}  Ra2 {[%clk 0:00:37]} 39. Rh3 {[%clk 0:00:02]}  Kg7 {[%clk 0:00:37]} 40. Re3 {[%clk 0:00:03]}  g5 {[%clk 0:00:36]} 41. fxg5 {[%clk 0:00:02]}  fxg5 {[%clk 0:00:37]} 42. Re7+ {[%clk 0:00:03]}  Kf6 {[%clk 0:00:38]} 43. Rxc7 {[%clk 0:00:03]}  g4 {[%clk 0:00:39]} 44. Rc6 {[%clk 0:00:04]}  g3 {[%clk 0:00:39]} 45. Rxd6+ {[%clk 0:00:04]}  Kf7 {[%clk 0:00:39]} 46. Rh6 {[%clk 0:00:02]}  Rh2 {[%clk 0:00:38]} 0-1


[Site "https://www.chess.com"]